bitfinex/quotes_ETHUSD_20260126
["timestamp","ask_amount","ask_price","bid_price","bid_amount"]
[1769413047569,4.4813716,2899.0,2897.8,0.03450893]
[1769413048168,4.4813716,2899.0,2898.5,0.001]
[1769413048452,4.86681065,2898.9,2898.5,0.001]
[1769413048671,0.44813716,2898.9,2898.5,0.001]
[1769413048890,3.92067349,2899.2,2898.5,0.001]
[1769413049174,0.86426445,2899.4,2898.5,0.001]
[1769413049965,5.28293794,2899.4,2898.5,0.001]
[1769413050667,0.002,2899.4,2898.5,4.6316583]
[1769413050980,0.002,2899.4,2898.6,0.46316583]
[1769413052354,0.002,2899.4,2898.5,0.001]
[1769413052577,4.42067349,2899.4,2898.5,0.001]
[1769413054679,4.4833716,2899.4,2898.5,0.001]
[1769413055588,4.42067349,2899.4,2898.5,0.001]
[1769413060483,4.42067349,2899.4,2898.7,0.001]
[1769413060653,0.002,2899.2,2898.7,0.001]
[1769413064500,4.37141018,2899.2,2898.7,0.001]
[1769413065567,4.43210829,2899.1,2898.7,0.001]
[1769413065766,4.43210829,2898.9,2897.8,4.37463076]
[1769413065966,4.81262101,2898.8,2897.8,5.57635248]
[1769413066417,4.43210829,2899.1,2897.9,10.80938742]
[1769413066585,4.43210829,2899.1,2898.0,4.37463076]
[1769413066918,4.43210829,2899.1,2898.0,4.40913731]
[1769413067570,5.29444543,2899.1,2898.0,4.40913731]
[1769413067792,5.29444543,2899.1,2898.0,4.37463076]
[1769413067993,4.36941018,2898.9,2898.0,4.37463076]
[1769413069198,4.36941018,2898.9,2898.0,4.40913731]
[1769413070403,4.36941018,2898.9,2898.0,4.37463076]
[1769413070706,4.36941018,2898.9,2897.9,6.43475666]
[1769413072098,4.36941018,2898.9,2897.8,5.54184355]
[1769413072272,4.94555229,2898.8,2897.8,5.54184355]
[1769413072671,4.94555229,2898.8,2898.2,0.001]
[1769413080609,0.57614211,2898.8,2898.2,4.37563076]
[1769413080810,4.37141018,2899.2,2898.3,4.40913374]
[1769413081013,4.37141018,2899.2,2898.3,4.37463076]
[1769413082008,0.002,2899.2,2898.3,4.37463076]
[1769413084094,0.002,2898.7,2898.3,4.37463076]
[1769413088024,0.002,2898.7,2898.2,0.001]
[1769413088227,0.002,2898.7,2898.2,0.43879302]
[1769413088589,0.002,2898.7,2898.2,0.001]
[1769413090714,4.33376344,2898.7,2898.2,0.001]
[1769413093316,0.002,2898.7,2898.2,0.001]
[1769413094122,4.33376344,2898.7,2898.2,0.001]
[1769413096123,4.33376344,2898.7,2898.4,0.001]
[1769413096323,0.43964616,2898.6,2898.4,0.001]
[1769413096526,0.002,2898.5,2898.4,0.001]
[1769413097135,4.33376344,2898.5,2897.2,5.23981571]
[1769413097339,4.39446155,2898.4,2897.4,4.33801951]
[1769413097490,4.96432122,2898.4,2897.4,4.86155718]
[1769413099139,4.20291332,2898.3,2897.4,4.33801951]
[1769413099823,4.26561143,2898.2,2897.2,4.33801951]
[1769413100224,4.20291332,2898.2,2897.2,4.33801951]
[1769413100429,4.20291332,2898.2,2897.2,5.20089631]
[1769413100724,4.8354711,2898.4,2897.2,5.20089631]
[1769413100919,0.48374711,2898.3,2897.4,4.33801951]
[1769413101825,0.002,2898.5,2897.9,4.33801951]
[1769413103731,0.002,2898.5,2897.7,4.33801951]
[1769413104721,4.26761143,2898.5,2897.7,4.33801951]
[1769413104905,4.26761143,2898.5,2897.4,4.33801951]
[1769413105232,4.26561143,2898.3,2897.4,4.33801951]
[1769413105433,4.62947446,2898.2,2897.4,4.33801951]
[1769413105630,4.62947446,2898.2,2897.3,0.52354136]
[1769413106019,4.62947446,2898.2,2897.3,4.86156087]
[1769413106223,0.06469811,2898.5,2897.4,4.37253321]
[1769413106610,0.06469811,2898.5,2897.4,4.33801951]
[1769413106611,4.26761143,2898.5,2897.4,4.33801951]
[1769413106815,4.20491332,2898.5,2897.4,4.33801951]
[1769413108032,4.20491332,2898.5,2897.5,4.37253202]
[1769413108210,4.20491332,2898.5,2897.5,4.33801951]
[1769413108410,0.42049133,2898.4,2897.6,4.33901951]
[1769413108621,0.002,2898.3,2897.6,4.33901951]
[1769413109332,4.20491332,2898.3,2897.6,0.001]
[1769413110635,4.20491332,2898.3,2897.6,4.33901951]
[1769413110636,0.002,2898.3,2897.6,4.33901951]
[1769413112115,4.20491332,2898.3,2897.6,0.001]
[1769413112443,0.46881028,2898.2,2897.6,0.001]
[1769413113247,0.46881028,2898.2,2897.6,4.33901951]
[1769413113453,0.002,2898.5,2898.0,4.33801951]
[1769413113743,0.002,2898.7,2898.4,4.33801951]
[1769413115149,0.002,2898.7,2898.1,4.54604038]
[1769413116645,0.002,2898.7,2897.8,4.54604038]
[1769413117035,0.002,2898.7,2897.8,5.40876225]
[1769413117239,0.002,2898.7,2898.0,4.54604038]
[1769413117917,0.002,2898.7,2898.1,4.58054574]
[1769413118521,0.002,2898.9,2898.4,4.54604038]
[1769413120358,0.002,2898.5,2898.4,4.54604038]
[1769413120528,0.002,2898.7,2898.4,4.54604038]
[1769413121157,0.002,2898.9,2898.4,5.6443026]
[1769413121355,0.002,2899.2,2898.4,5.6443026]
[1769413121356,0.002,2899.2,2898.7,4.54604038]
[1769413122821,0.002,2899.2,2898.6,7.29904618]
[1769413123625,0.002,2899.2,2898.5,5.40854969]
[1769413123830,4.20651989,2899.2,2898.4,1.96080652]
[1769413124167,4.63364169,2899.2,2898.4,1.96080652]
[1769413124570,4.63364169,2899.2,2898.4,1.09826222]
[1769413124864,4.63364169,2899.2,2898.3,0.86255556]
[1769413126553,4.63364169,2899.2,2898.2,11.84521003]
[1769413128754,4.63364169,2899.2,2898.1,0.86261633]
[1769413128755,4.267218,2898.9,2898.1,0.86261633]
[1769413129046,4.267218,2899.1,2898.2,0.86260346]
[1769413129254,4.267218,2899.1,2898.2,5.40864384]
[1769413129440,4.67415387,2899.1,2898.2,5.40864384]
[1769413132067,4.67415387,2899.1,2898.4,0.001]
[1769413132455,0.002,2898.9,2898.4,0.001]
[1769413132648,0.002,2898.9,2898.4,4.54704038]
[1769413133368,0.002,2899.4,2898.8,6.43658177]
[1769413133544,0.002,2899.4,2898.9,4.54604038]
[1769413133744,0.002,2899.7,2899.0,4.54604038]
[1769413133966,0.002,2899.7,2899.2,4.54604038]
[1769413134779,0.002,2899.7,2899.1,6.43658177]
[1769413135241,0.002,2899.7,2899.1,12.23942267]
[1769413135443,0.002,2899.7,2899.2,4.54604038]
[1769413135969,0.002,2899.7,2899.2,5.4083453]
[1769413137676,0.002,2899.7,2899.2,4.54604038]
[1769413137886,0.002,2899.9,2899.4,10.98262215]
[1769413138047,0.002,2900.0,2899.5,5.64430259]
[1769413138245,0.002,2900.1,2899.7,10.98262215]
[1769413138475,0.002,2900.2,2899.8,4.54604038]
[1769413140248,0.002,2900.3,2899.8,4.54604038]
[1769413140249,0.002,2900.3,2899.8,5.4081645]
[1769413140450,0.002,2900.3,2899.8,0.722]
[1769413140658,0.002,2900.3,2899.8,2.75366844]
[1769413140852,0.002,2900.3,2899.8,1.89154082]
[1769413141061,0.002,2900.3,2899.7,0.722]
[1769413141385,0.002,2900.3,2899.5,0.86219682]
[1769413141596,0.002,2900.3,2899.5,1.58419682]
[1769413141759,4.20651989,2900.3,2899.3,0.722]
[1769413141958,4.63144169,2900.2,2899.3,1.99377105]
[1769413142259,4.63144169,2900.2,2899.3,2.85604105]
[1769413143162,4.63144169,2900.2,2899.2,5.40832898]
[1769413143465,4.20451989,2900.1,2899.2,5.40832898]
[1769413143658,0.06269811,2899.8,2899.0,0.86235038]
[1769413143858,0.06269811,2899.8,2898.9,0.86237644]
[1769413143859,4.267218,2899.8,2898.9,0.86237644]
[1769413144157,4.267218,2899.8,2898.9,0.86239608]
[1769413146089,4.20451989,2899.8,2898.7,4.54604038]
[1769413146272,4.20451989,2899.8,2898.8,0.86241569]
[1769413146472,4.65922013,2899.7,2898.8,0.86241569]
[1769413146658,4.65922013,2899.7,2898.7,5.40847518]
[1769413146863,4.65922013,2899.7,2898.8,0.86242459]
[1769413148285,4.65922013,2899.7,2898.7,5.40847615]
[1769413149080,4.65922013,2899.7,2898.7,0.86243577]
[1769413149432,4.23876814,2899.5,2898.7,0.86243577]
[1769413149576,4.23876814,2899.7,2898.7,5.24917094]
[1769413153169,4.23876814,2899.9,2898.7,5.24917094]
[1769413153369,0.06269811,2900.0,2898.7,5.24917094]
[1769413153370,0.06269811,2899.8,2898.7,5.24917094]
[1769413153593,4.30146625,2899.8,2898.7,4.38673517]
[1769413153903,4.23876814,2899.6,2898.7,4.38673517]
[1769413154078,4.23876814,2899.6,2898.6,0.86245607]
[1769413154276,4.23876814,2899.4,2898.4,0.86352969]
[1769413154619,0.06269811,2899.5,2898.4,0.001]
[1769413154620,4.23876814,2899.2,2898.4,0.001]
[1769413154907,0.06269811,2899.3,2898.4,0.001]
[1769413154908,4.23876814,2899.0,2898.4,0.001]
[1769413155200,4.66891477,2899.0,2898.4,0.001]
[1769413156995,4.66891477,2899.0,2898.6,0.001]
[1769413165813,4.29096431,2899.6,2898.6,4.38820371]
[1769413166018,4.29096431,2899.9,2898.9,4.38720371]
[1769413166310,4.35366242,2899.8,2898.6,4.38820371]
[1769413166483,0.06269811,2899.3,2898.6,0.001]
[1769413166682,4.79529847,2899.3,2898.6,0.001]
[1769413168819,4.79529847,2899.3,2898.8,0.001]
[1769413169700,4.73260036,2899.3,2898.8,0.001]
[1769413170312,0.06269811,2899.2,2898.8,0.001]
[1769413170814,0.06269811,2899.0,2898.8,0.001]
[1769413171007,0.06269811,2899.0,2898.6,0.001]
[1769413171008,4.79529847,2899.0,2898.6,0.001]
[1769413171205,4.35366242,2899.0,2898.6,0.001]
[1769413172298,4.29096431,2899.0,2898.6,0.001]
[1769413172821,4.35366242,2899.2,2898.6,0.001]
[1769413176104,0.06269811,2899.0,2898.6,0.001]
[1769413176308,0.50910141,2899.0,2898.6,0.001]
[1769413176644,0.4464033,2899.0,2898.6,0.001]
[1769413176998,0.06269811,2899.2,2898.6,0.001]
[1769413177510,0.78569811,2899.5,2898.6,4.28061946]
[1769413177820,0.78569811,2899.5,2898.6,4.31267111]
[1769413178024,0.06269811,2899.8,2898.6,4.28061946]
[1769413178220,0.06269811,2899.6,2898.6,4.28061946]
[1769413178396,0.06269811,2899.6,2898.8,4.27961946]
[1769413179502,4.40133486,2899.6,2898.8,4.27961946]
[1769413179707,0.06269811,2899.4,2898.6,4.28061946]
[1769413180128,0.06269811,2899.4,2898.8,0.001]
[1769413180304,4.40333486,2899.4,2898.8,0.001]
[1769413180512,0.06469811,2899.4,2898.8,0.001]
[1769413181591,0.51150141,2899.4,2898.8,0.001]
[1769413181829,4.85013816,2899.4,2898.8,0.001]
[1769413186034,0.51150141,2899.4,2898.8,0.001]
[1769413187809,4.85013816,2899.4,2898.8,0.001]
[1769413189019,0.51150141,2899.4,2898.8,0.001]
[1769413189221,0.002,2899.4,2898.8,4.28061946]
[1769413190834,0.002,2899.4,2898.8,5.1430384]
[1769413191642,0.002,2899.4,2898.9,4.27961946]
[1769413192547,0.002,2899.2,2898.9,4.27961946]
[1769413192916,0.002,2899.2,2898.8,0.001]
[1769413193139,0.002,2899.2,2898.8,0.86342262]
[1769413193424,0.002,2899.2,2898.8,0.001]
[1769413193624,0.002,2899.2,2898.8,0.51540728]
[1769413194134,0.002,2899.2,2898.8,1.37783089]
[1769413194322,0.002,2899.4,2898.9,4.27961946]
[1769413194938,0.002,2899.6,2899.0,4.27961946]
[1769413197351,0.002,2899.6,2899.0,5.14197942]
[1769413197650,0.002,2899.6,2899.2,4.27961946]
[1769413199852,0.002,2899.6,2899.2,5.14191823]
[1769413200554,0.002,2899.6,2899.2,4.27961946]
[1769413200782,0.06469811,2900.1,2899.3,4.27961946]
[1769413201946,4.40333486,2900.1,2899.3,4.27961946]
[1769413202164,4.40333486,2900.1,2899.3,5.14188116]
[1769413202165,0.5052316,2900.1,2899.3,5.14188116]
[1769413202365,0.06469811,2900.1,2899.3,5.14188116]
[1769413202565,0.06469811,2900.1,2899.3,4.27961946]
[1769413203163,4.40333486,2900.1,2899.1,1.5018892]
[1769413203363,4.40333486,2900.1,2899.1,2.36422344]
[1769413204346,0.002,2899.9,2899.2,4.27961946]
[1769413204577,0.002,2899.9,2899.4,4.27961946]
[1769413206091,0.002,2899.9,2899.5,5.05549219]
[1769413206250,0.002,2899.9,2899.3,11.28783022]
[1769413206449,0.002,2899.9,2899.4,0.86224573]
[1769413207947,0.002,2899.9,2899.4,5.0555203]
[1769413208180,0.002,2899.9,2899.5,5.11016975]
[1769413210984,0.002,2899.9,2899.6,0.86218788]
[1769413212088,0.002,2899.9,2899.6,5.05546245]
[1769413212981,0.002,2900.1,2899.7,4.19327457]
[1769413213145,0.002,2900.3,2899.8,4.19327457]
[1769413213351,0.002,2900.6,2899.9,4.19327457]
[1769413215182,0.002,2900.6,2900.0,5.05534353]
[1769413216679,0.002,2900.6,2900.0,4.19327457]
[1769413217089,0.002,2900.4,2900.0,5.05534182]
[1769413217305,0.002,2900.4,2900.0,1.54395435]
[1769413217598,0.002,2900.4,2899.6,1.58516658]
[1769413217599,4.21684522,2900.4,2899.6,1.58516658]
[1769413217961,4.21684522,2900.4,2899.7,0.86215626]
[1769413218769,4.21684522,2900.4,2899.8,0.86212744]
[1769413218974,0.002,2900.4,2899.8,0.86212744]
[1769413219175,0.002,2900.4,2899.8,1.80121948]
[1769413219761,0.002,2900.4,2899.9,4.35705483]
[1769413220378,0.002,2900.6,2900.1,10.78722619]
[1769413220785,0.002,2900.8,2900.4,10.78722619]
[1769413221101,0.002,2901.3,2900.5,4.35705483]
[1769413221391,0.002,2901.3,2900.6,1.07872262]
[1769413222384,0.002,2901.3,2900.6,1.94060631]
[1769413222702,0.002,2901.3,2900.6,1.94061277]
[1769413223899,0.002,2901.8,2901.0,10.78722619]
[1769413224889,0.002,2901.8,2901.1,4.35705483]
[1769413225088,0.002,2901.8,2901.1,5.43577745]
[1769413225370,0.002,2901.8,2901.3,10.78722619]
[1769413225569,0.002,2901.8,2901.4,0.86165299]
[1769413225778,0.002,2901.8,2901.5,4.35705483]
[1769413225986,4.27754333,2902.9,2901.6,10.78722619]
[1769413226279,4.27754333,2902.3,2901.4,0.722]
[1769413226681,0.06269811,2902.5,2901.4,5.07905483]
[1769413226682,4.27754333,2902.5,2901.4,5.07905483]
[1769413227104,4.21484522,2902.8,2901.7,4.35705483]
[1769413227309,0.06269811,2902.7,2901.7,4.35705483]
[1769413227602,0.06269811,2902.7,2901.7,5.21861628]
[1769413227806,0.42775433,2902.6,2901.7,5.21861628]
[1769413228172,0.42775433,2902.6,2901.7,4.35705483]
[1769413229300,4.64259955,2902.6,2901.6,6.43017136]
[1769413229682,4.64459955,2902.6,2901.6,6.43017136]
[1769413229865,4.64459955,2902.6,2901.4,0.722]
[1769413229866,4.21484522,2902.1,2901.1,5.43577745]
[1769413230072,4.21484522,2901.7,2900.7,0.8618337]
[1769413230302,4.21484522,2902.1,2900.7,4.35705483]
[1769413230513,4.21484522,2901.9,2900.8,0.8618162]
[1769413230712,4.21484522,2901.9,2900.8,5.21886779]
[1769413230915,0.42775433,2901.8,2900.8,5.21886779]
[1769413231282,0.42775433,2901.8,2900.8,5.21886767]
[1769413231586,0.42775433,2901.8,2900.9,0.86180091]
[1769413231895,4.64259955,2901.8,2900.8,4.35705483]
[1769413232094,4.70529766,2901.8,2900.6,0.75647562]
[1769413232404,4.27754333,2901.6,2900.6,1.58388419]
[1769413232908,4.27754333,2901.6,2900.7,0.86185978]
[1769413233209,4.27754333,2901.6,2900.7,0.86185663]
[1769413233504,4.21484522,2901.6,2900.8,0.86182566]
[1769413233677,0.47052977,2901.7,2900.7,0.8618405]
[1769413233878,4.21484522,2901.8,2900.7,4.35705483]
[1769413234705,0.06269811,2902.0,2900.6,0.722]
[1769413234706,4.485635,2901.6,2900.6,0.722]
[1769413234877,4.485635,2901.6,2900.6,1.58388724]
[1769413236214,4.485635,2901.6,2900.6,5.69694327]
[1769413236376,4.9341985,2901.6,2900.6,6.61140542]
[1769413237516,0.4485635,2901.6,2900.7,4.11305603]
[1769413237892,0.4485635,2901.6,2900.6,1.63646215]
[1769413237893,4.9341985,2901.6,2900.6,1.63646215]
[1769413238095,4.9341985,2901.6,2900.0,7.70760586]
[1769413238096,4.54833311,2901.5,2900.1,4.11305603]
[1769413238389,4.485635,2901.2,2900.1,4.11305603]
[1769413238905,4.485635,2901.2,2900.1,4.97507737]
[1769413239110,4.485635,2901.2,2900.1,4.11305603]
[1769413239305,0.45483331,2901.1,2900.1,4.11305603]
[1769413239511,4.94046831,2901.1,2900.1,4.97508863]
[1769413239904,4.94046831,2901.1,2900.1,4.11305603]
[1769413240105,4.94046831,2901.1,2900.1,4.97509161]
[1769413240415,4.94046831,2901.1,2900.0,1.58506559]
[1769413240618,4.97968183,2901.0,2900.0,0.723]
[1769413240789,4.97968183,2901.0,2900.0,1.5850671]
[1769413241406,4.97968183,2901.0,2900.1,0.86203896]
[1769413241611,0.49404683,2901.0,2900.1,4.97509499]
[1769413241812,0.49604683,2901.0,2900.1,4.97509499]
[1769413242287,4.98168183,2901.0,2900.1,4.97509499]
[1769413242489,0.49816818,2900.9,2900.1,4.97509499]
[1769413242985,4.98380318,2900.9,2900.0,0.723]
[1769413243189,4.98380318,2900.9,2900.1,0.86203014]
[1769413243523,0.49816818,2900.9,2900.1,4.97508617]
[1769413243921,4.98380318,2900.9,2900.0,0.001]
[1769413244125,0.49858032,2900.8,2900.0,0.001]
[1769413244321,5.04691343,2900.8,2900.0,0.001]
[1769413244521,4.54833311,2900.8,2900.0,0.001]
[1769413245025,4.54833311,2900.8,2899.6,4.11405603]
[1769413245026,4.485635,2900.4,2899.6,0.86317547]
[1769413245325,4.485635,2900.7,2899.7,0.86215813]
[1769413245495,4.485635,2900.7,2899.6,0.86316666]
[1769413245687,4.9341985,2900.6,2899.6,0.86316666]
[1769413245892,4.9341985,2900.6,2899.7,0.86215684]
[1769413246091,4.9341985,2900.6,2899.6,4.9762262]
[1769413246516,4.9341985,2900.6,2899.6,0.001]
[1769413246912,4.9341985,2900.6,2899.6,0.8631751]
[1769413247111,4.98532466,2900.5,2899.6,0.8631751]
[1769413247516,4.98532466,2900.5,2899.6,4.97623113]
[1769413247700,0.49968966,2900.5,2899.6,4.97623113]
[1769413248631,0.49968966,2900.5,2899.6,4.11405603]
[1769413249032,4.98532466,2900.5,2899.6,0.001]
[1769413249201,4.485635,2900.3,2899.6,0.001]
[1769413253145,0.49853247,2900.4,2899.6,0.001]
[1769413253337,4.485635,2900.9,2899.6,4.14854354]
[1769413253838,4.485635,2900.9,2899.8,0.001]
[1769413255144,4.485635,2900.9,2899.8,0.86312842]
[1769413255551,4.485635,2900.9,2899.8,0.001]
[1769413255752,4.485635,2900.9,2899.8,4.11405603]
[1769413255922,0.4487635,2900.8,2899.8,4.95665032]
[1769413256624,4.9343985,2900.8,2899.8,4.95665032]
[1769413257022,4.9343985,2900.8,2899.8,5.81876264]
[1769413257736,4.9343985,2900.8,2899.8,0.84359429]
[1769413257737,4.485635,2900.6,2899.8,0.84359429]
[1769413258033,4.485635,2900.6,2899.8,0.001]
[1769413260739,0.4487635,2900.8,2899.8,4.11405603]
[1769413260924,4.485635,2900.9,2899.8,4.11405603]
[1769413261123,0.002,2901.0,2900.0,4.11305603]
[1769413261544,4.54833311,2900.9,2899.8,0.001]
[1769413262063,0.06269811,2900.7,2899.8,0.001]
[1769413262352,4.485635,2900.6,2899.8,0.001]
[1769413262559,0.45483331,2900.5,2899.8,0.001]
[1769413262756,0.51753142,2900.5,2899.8,0.001]
[1769413264283,0.45483331,2900.5,2899.8,0.001]
[1769413264428,4.487635,2901.0,2899.8,4.14854116]
[1769413264634,4.487635,2901.0,2899.8,4.11405603]
[1769413265542,4.54506199,2900.9,2899.8,0.001]
[1769413265736,4.48236388,2900.6,2899.8,0.001]
[1769413266771,0.06269811,2900.7,2899.8,0.001]
[1769413266772,4.54506199,2900.5,2899.8,0.001]
[1769413267068,4.93687008,2900.4,2899.8,0.001]
[1769413267865,4.54506199,2900.3,2899.8,0.001]
[1769413268864,4.48236388,2900.3,2899.8,0.001]
[1769413269771,0.06269811,2900.2,2899.8,0.001]
[1769413269953,4.48236388,2900.1,2899.8,0.001]
[1769413270150,0.4545062,2900.0,2899.8,0.001]
[1769413270464,4.48236388,2900.1,2899.8,0.001]
[1769413272444,4.48236388,2899.8,2898.6,0.001]
[1769413272651,4.54506199,2899.5,2898.6,0.001]
[1769413272849,4.54506199,2899.3,2898.6,0.001]
[1769413273061,0.4545062,2899.2,2898.6,0.001]
[1769413273260,4.54506199,2899.1,2898.6,0.001]
[1769413273761,0.06269811,2898.9,2898.0,5.23533008]
[1769413274078,0.06269811,2898.9,2898.0,4.37267055]
[1769413274882,4.54506199,2898.9,2898.0,5.23533111]
[1769413275085,0.4545062,2898.8,2898.0,5.23533111]
[1769413275457,0.4545062,2898.8,2898.0,4.37267055]
[1769413275963,0.06269811,2898.7,2897.8,0.86272224]
[1769413276565,0.06269811,2898.7,2897.7,4.37267055]
[1769413276756,4.48236388,2898.6,2897.6,0.723]
[1769413276952,4.48236388,2898.6,2897.6,5.04826007]
[1769413277153,0.51720431,2898.5,2897.6,5.91101706]
[1769413277678,0.51720431,2898.5,2897.6,5.04826007]
[1769413278285,0.4545062,2898.5,2897.7,0.86275283]
[1769413278453,0.4545062,2898.5,2897.6,5.91102713]
[1769413278656,0.51720431,2898.5,2897.6,5.04826007]
[1769413278851,4.28362352,2899.1,2897.7,4.32526007]
[1769413279050,6.35,2899.4,2897.6,1.58578046]
[1769413279051,10.63362352,2899.4,2897.9,4.32526007]
[1769413279254,10.63362352,2899.4,2898.1,4.32526007]
[1769413279255,4.28362352,2899.4,2898.1,4.32526007]
[1769413279784,0.06269811,2899.6,2898.1,4.32526007]
[1769413279985,4.34632163,2899.7,2898.3,4.32526007]
[1769413280189,4.34632163,2899.7,2898.5,4.32526007]
[1769413280358,0.06269811,2899.7,2898.5,4.32526007]
[1769413280557,4.34632163,2899.7,2898.5,4.32526007]
[1769413280858,4.34632163,2899.7,2898.6,5.1877454]
[1769413281059,0.43463216,2899.6,2898.6,4.32526007]
[1769413281255,4.34632163,2899.5,2898.4,0.43597642]
[1769413281457,4.34632163,2899.5,2898.3,5.187818]
[1769413281683,4.34632163,2899.3,2898.3,4.32526007]
[1769413281884,0.06269811,2899.1,2898.1,4.32526007]
[1769413282185,0.06269811,2899.1,2898.2,0.86260043]
[1769413282385,4.34632163,2899.1,2898.2,0.86260043]
[1769413282586,0.43463216,2899.0,2898.2,0.86260043]
[1769413283409,4.78095379,2899.0,2898.1,5.18789145]
[1769413283691,4.71825568,2899.0,2898.1,4.32526007]
[1769413283878,0.06269811,2898.9,2897.9,5.18795173]
[1769413284078,4.34632163,2898.9,2897.9,4.32526007]
[1769413284283,0.06269811,2898.7,2897.8,0.86272264]
[1769413284709,0.06269811,2898.7,2897.7,0.86274677]
[1769413285204,0.06269811,2898.7,2897.9,0.86267721]
[1769413285402,0.47809538,2898.8,2897.9,5.18793728]
[1769413285982,0.06269811,2899.1,2897.9,5.18793728]
[1769413286384,4.34632163,2898.9,2897.7,5.1879937]
[1769413286621,4.34632163,2898.9,2897.7,5.18799214]
[1769413286991,4.34632163,2898.9,2897.8,0.86271952]
[1769413287515,4.34632163,2898.9,2897.8,4.32526007]
[1769413287719,0.43463216,2898.8,2897.8,4.32526007]
[1769413289392,0.43463216,2898.8,2898.0,0.001]
[1769413290728,0.43463216,2898.8,2898.0,4.32626007]
[1769413291093,4.34632163,2899.1,2898.0,4.32626007]
[1769413291519,0.06269811,2899.0,2898.0,5.18891789]
[1769413292495,4.34632163,2899.0,2898.0,5.18891789]
[1769413292925,4.34632163,2899.0,2898.0,4.32626007]
[1769413294226,4.34632163,2899.0,2898.0,5.18892373]
[1769413294426,0.43463216,2898.9,2898.0,5.18892373]
[1769413295032,4.34726335,2899.2,2898.0,5.18892373]
[1769413295606,0.06269811,2899.1,2898.0,5.18892373]
[1769413296525,4.40996146,2899.1,2898.0,5.18892373]
[1769413297538,4.40996146,2898.9,2898.0,4.32626007]
[1769413297707,4.40996146,2898.9,2898.0,0.001]
[1769413297708,4.7882595,2898.8,2898.0,0.001]
[1769413297907,4.7882595,2898.8,2898.0,0.8636613]
[1769413298542,4.7882595,2898.8,2898.0,0.001]
[1769413299008,0.44099615,2898.8,2898.0,4.29725277]
[1769413299310,0.06269811,2898.9,2898.0,4.29725277]
[1769413299838,0.06269811,2899.1,2898.0,4.30482025]
[1769413300024,0.06269811,2899.1,2898.0,4.33175932]
[1769413300344,0.06269811,2899.1,2898.0,4.29725277]
[1769413300542,0.06269811,2898.9,2898.0,5.15991399]
[1769413300722,0.44726596,2898.9,2898.0,5.15991399]
[1769413301123,0.06269811,2899.3,2898.0,5.15991399]
[1769413301321,0.06269811,2899.1,2898.0,5.15991399]
[1769413302141,0.06269811,2899.1,2898.2,0.001]
[1769413302348,0.06269811,2899.3,2898.3,4.29625277]
[1769413302558,0.002,2898.7,2898.3,4.29625277]
[1769413302918,0.002,2898.7,2898.4,4.29625277]
[1769413305243,0.002,2898.7,2898.2,4.29725277]
[1769413307149,0.002,2898.7,2898.2,0.001]
[1769413307863,4.34926335,2898.7,2898.0,0.001]
[1769413309118,0.06269811,2898.6,2898.0,0.001]
[1769413309443,0.44119615,2898.5,2898.0,0.001]
[1769413309650,0.002,2898.9,2898.0,0.001]
[1769413309651,0.002,2899.4,2898.0,4.33175932]
[1769413309865,0.002,2899.6,2898.3,4.29625277]
[1769413310081,0.002,2899.6,2898.5,4.29625277]
[1769413310255,0.002,2899.6,2898.7,4.29625277]
[1769413312271,0.06269811,2899.5,2898.6,0.43307546]
[1769413312569,0.06269811,2899.5,2898.6,5.5917967]
[1769413313070,0.06269811,2899.5,2898.7,0.8624541]
[1769413313479,0.002,2899.6,2898.7,0.8624541]
[1769413313662,0.002,2899.6,2898.7,6.06289097]
[1769413313864,0.06269811,2899.5,2898.7,6.06289241]
[1769413314751,0.002,2899.4,2898.7,6.06289241]
[1769413315466,0.002,2899.4,2898.8,4.29625277]
[1769413316165,0.002,2899.4,2899.0,4.29625277]
[1769413318173,0.002,2899.4,2898.7,1.76661657]
[1769413318386,0.002,2899.4,2898.7,1.76663711]
[1769413319872,0.002,2899.4,2898.7,0.9041841]
[1769413320051,0.002,2899.4,2898.7,1.7666354]
[1769413320374,0.002,2899.4,2898.7,6.06288817]
[1769413321179,0.002,2899.4,2898.7,5.20043687]
[1769413321353,0.002,2899.4,2898.7,0.9041841]
[1769413322175,0.06269811,2899.3,2898.7,0.9041841]
[1769413322374,4.41196146,2899.4,2898.5,0.86250224]
[1769413324277,0.06469811,2899.4,2898.5,5.15875501]
[1769413327788,0.06269811,2899.2,2898.4,5.05045176]
[1769413329276,0.06269811,2899.2,2898.4,4.18792724]
[1769413329865,0.06269811,2899.2,2898.4,5.03811593]
[1769413330077,0.06269811,2899.2,2898.4,5.90065834]
[1769413330383,0.06269811,2899.2,2898.4,5.03811593]
[1769413330793,0.06269811,2899.2,2898.4,5.90066049]
[1769413330975,0.06269811,2899.2,2898.4,5.03811593]
[1769413331494,0.06269811,2899.2,2898.5,0.59006745]
[1769413335371,4.18622617,2899.2,2898.4,0.85118869]
[1769413335697,4.18622617,2899.2,2898.4,0.001]
[1769413336392,4.18622617,2899.0,2898.4,0.001]
[1769413336799,0.002,2899.4,2898.4,5.05046474]
[1769413336998,0.002,2899.4,2898.5,0.86251344]
[1769413337176,0.002,2899.4,2898.6,4.15436015]
[1769413338077,0.06269811,2899.3,2898.6,4.15436015]
[1769413338397,0.002,2899.4,2898.6,4.15536015]
[1769413338590,0.06269811,2899.3,2898.6,4.15536015]
[1769413339473,0.06269811,2899.1,2898.6,0.001]
[1769413339773,0.06269811,2898.5,2898.2,0.001]
[1769413339978,0.50217689,2898.5,2898.2,0.001]
[1769413340203,0.43947878,2898.5,2898.2,0.001]
[1769413341385,0.06269811,2898.7,2898.2,0.001]
[1769413342200,0.06269811,2899.3,2898.2,4.15536015]
[1769413342405,0.06269811,2899.3,2898.3,4.18886313]
[1769413342711,0.002,2899.4,2898.3,4.18886313]
[1769413342888,0.002,2899.4,2898.5,4.15436015]
[1769413343082,0.002,2899.4,2898.5,4.18886074]
[1769413343479,0.002,2899.4,2898.6,5.01684548]
[1769413343907,0.002,2899.4,2898.6,4.15436015]
[1769413345317,0.002,2899.4,2898.3,3.45028715]
[1769413345318,4.33208969,2899.3,2898.3,5.01691746]
[1769413345484,0.43340897,2899.2,2898.3,5.01691746]
[1769413346212,0.06269811,2899.3,2898.3,5.01691746]
[1769413348411,0.06269811,2899.3,2898.3,4.15436015]